Workbook

Sheet Etagement
B2: Copyright Olivier ADLER 2024 | G2: RPM | H2: Couple
B3: MotorSport@StoneRecording.art | G3: 750 | H3: 79
A4: Version 5.0 | G4: 1000 | H4: 106
B5: =HLOOKUP(traductions!$B$3,traductions!$E4:$F44,10,FALSE) -> Green values can be modified | G5: 1250 | H5: 135
B6: =HLOOKUP(traductions!$B$3,traductions!$E4:$F44,2,FALSE) -> Speed number (n) | D6: 6 | G6: 1500 | H6: 162
B7: =HLOOKUP(traductions!$B$3,traductions!$E4:$F44,3,FALSE) -> First speed ratio (R1) | D7: 4.2 | G7: 1750 | H7: 190
B8: =HLOOKUP(traductions!$B$3,traductions!$E4:$F44,4,FALSE) -> Last speed ratio (Rn) | D8: 0.88 | G8: 2000 | H8: 220
B9: =HLOOKUP(traductions!$B$3,traductions!$E4:$F44,5,FALSE) -> Differential gearing or final gearing | D9: 4.11 | G9: 2250 | H9: 250
B10: =HLOOKUP(traductions!$B$3,traductions!$E4:$F44,6,FALSE) -> Transfercase long gearing ratio | D10: 1 | G10: 2500 | H10: 270
B11: =HLOOKUP(traductions!$B$3,traductions!$E4:$F44,7,FALSE) -> Transfercase short gearing ratio | D11: 2.49 | G11: 2750 | H11: 280
B12: =HLOOKUP(traductions!$B$3,traductions!$E4:$F44,8,FALSE) -> Logarithmic coefficient (k) | D12: 0.1 | G12: 3000 | H12: 275
G13: 3250 | H13: 260
B14: =HLOOKUP(traductions!$B$3,traductions!$E4:$F44,9,FALSE) -> Calculated linear spacing coefficient (r) | D14: =(D8/D7)^(1/(D6-1)) -> 0.7315544835 | G14: 3500 | H14: 245
G15: 3750 | H15: 222
B16: =HLOOKUP(traductions!$B$3,traductions!$E4:$F44,11,FALSE) -> Tires | G16: 4000 | H16: 198
B17: =HLOOKUP(traductions!$B$3,traductions!$E4:$F44,12,FALSE) -> Diameter (inches) | D17: 16 | G17: 4700 | H17: 140
B18: =HLOOKUP(traductions!$B$3,traductions!$E4:$F44,13,FALSE) -> Width (mm) | D18: 275 | G18: 4800 | H18: 130
B19: =HLOOKUP(traductions!$B$3,traductions!$E4:$F44,14,FALSE) -> Sidewall height (percent of width) | D19: 70 | G19: 4900 | H19: 50
B20: =HLOOKUP(traductions!$B$3,traductions!$E4:$F44,15,FALSE) -> Crushing coefficient | D20: 0.97
B21: =HLOOKUP(traductions!$B$3,traductions!$E4:$F44,16,FALSE) -> Calculated effective radius (m) | D21: =$D$23*$D$20/2/1000 -> 0.383829
B22: =HLOOKUP(traductions!$B$3,traductions!$E4:$F44,17,FALSE) -> Calculated flank height (mm) | D22: =$D$18*$D$19/100 -> 192.5
B23: =HLOOKUP(traductions!$B$3,traductions!$E4:$F44,18,FALSE) -> Calculated total diameter (mm) | D23: =$D$17*25.4+2*$D$22 -> 791.4
B24: =HLOOKUP(traductions!$B$3,traductions!$E4:$F44,19,FALSE) -> Calculated circumference (m) | D24: =PI()*$D$23/1000 -> 2.486256426
B26: Résistance aérodynamique
C28: =HLOOKUP(traductions!$B$3,traductions!$E4:$F44,20,FALSE) -> Frontal area in m² | D28: 2.2
C29: =HLOOKUP(traductions!$B$3,traductions!$E4:$F44,21,FALSE) -> Drag coefficient | D29: 0.32
C30: =HLOOKUP(traductions!$B$3,traductions!$E4:$F44,22,FALSE) -> Air density in kg/m3 | D30: 1.2 | F30: =HLOOKUP(traductions!$B$3,traductions!$E4:$F44,27,FALSE) -> Logarithmic spacing (long ratios) | J30: =HLOOKUP(traductions!$B$3,traductions!$E4:$F44,28,FALSE) -> Logarithmic spacing (short ratios) | N30: =HLOOKUP(traductions!$B$3,traductions!$E4:$F44,29,FALSE) -> Linear spacing (long ratios) | R30: =HLOOKUP(traductions!$B$3,traductions!$E4:$F44,30,FALSE) -> Linear spacing (short ratios)
B32: Résistance au roulement | F32: Vitesse | G32: Rapport | H32: Différences | J32: Vitesse | K32: Rapport | L32: Différences | N32: Vitesse | O32: Rapport | P32: Différences | R32: Vitesse | S32: Rapport | T32: Différences
F33: =IF(20-(ROW(F$52)-ROW(F33))<=$D$6,20-(ROW(F$52)-ROW(F33)),"") -> 1 | G33: =IF(F33<=$D$6,$D$43*($D$8/$D$7)^(LOG10((F33-1)*($D$12)+1)/$D$46),"NA()") -> 4.2 | J33: =IF(20-(ROW(J$52)-ROW(J33))<=$D$6,20-(ROW(J$52)-ROW(J33)),"") -> 1 | K33: =IF(J33<=$D$6,$D$44*($D$8/$D$7)^(LOG10((J33-1)*($D$12)+1)/$D$46),"") -> 10.458 | N33: =IF(20-(ROW(N$52)-ROW(N33))<=$D$6,20-(ROW(N$52)-ROW(N33)),"") -> 1 | O33: =IF(N33<=$D$6,$D$43*$D$14^(N33-1),"") -> 4.2 | R33: =IF(20-(ROW(R$52)-ROW(R33))<=$D$6,20-(ROW(R$52)-ROW(R33)),"") -> 1 | S33: =IF(R33<=$D$6,$D$44*$D$14^(R33-1),"") -> 10.458
F34: 2 | G34: =IF(F34<=$D$6,$D$43*($D$8/$D$7)^(LOG10((F34-1)*($D$12)+1)/$D$46),"NA()") -> 2.90867911 | H34: =IF(F34="","",(G34/G33)-1) -> -0.3074573548 | J34: 2 | K34: 7.242610984 | L34: =IF(J34="","",(K34/K33)-1) -> -0.3074573548 | N34: 2 | O34: 3.072528831 | P34: =IF(N34="","",(O34/O33)-1) -> -0.2684455165 | R34: 2 | S34: 7.650596789 | T34: =IF(R34="","",(S34/S33)-1) -> -0.2684455165
C35: =HLOOKUP(traductions!$B$3,traductions!$E4:$F44,23,FALSE) -> Vehicle mass in kg | D35: 1600 | F35: 3 | G35: 2.07986381 | H35: =IF(F35="","",(G35/G34)-1) -> -0.2849455951 | J35: 3 | K35: 5.178860887 | L35: -0.2849455951 | N35: 3 | O35: 2.247722242 | P35: -0.2684455165 | R35: 3 | S35: 5.596828383 | T35: -0.2684455165
C36: =HLOOKUP(traductions!$B$3,traductions!$E4:$F44,24,FALSE) -> Rolling coefficient | D36: 0.01 | F36: 4 | G36: 1.52770622 | H36: -0.2654777623 | J36: 4 | K36: 3.803988487 | L36: -0.2654777623 | N36: 4 | O36: 1.644331284 | P36: =IF(N36="","",(O36/O35)-1) -> -0.2684455165 | R36: 4 | S36: 4.094384897 | T36: -0.2684455165
C37: =HLOOKUP(traductions!$B$3,traductions!$E4:$F44,25,FALSE) -> Gravity in m/s² | D37: 9.81 | F37: 5 | G37: 1.148100237 | H37: -0.2484810091 | J37: 5 | K37: 2.858769589 | L37: -0.2484810091 | N37: 5 | O37: 1.202917923 | P37: =IF(N37="","",(O37/O36)-1) -> -0.2684455165 | R37: 5 | S37: 2.995265629 | T37: -0.2684455165
B38: =HLOOKUP(traductions!$B$3,traductions!$E4:$F44,26,FALSE) -> Calculated rolling resistance in N | D38: 156.96 | F38: 6 | G38: 0.88 | H38: -0.2335164023 | J38: 6 | K38: 2.1912 | L38: -0.2335164023 | N38: 6 | O38: 0.88 | P38: -0.2684455165 | R38: 6 | S38: 2.1912 | T38: -0.2684455165
G39: NA()
G40: NA()
B41: Calculs intermédiaires | G41: NA()
G42: NA()
B43: Rapport de base 1ère longue | D43: =$D$7*$D$10 -> 4.2 | G43: NA()
B44: Rapport de base 1ère courte | D44: =$D$7*$D$11 -> 10.458 | G44: NA()
B45: Coeff1 | D45: =$D$43*($D$8/$D$7) -> 0.88 | G45: NA()
B46: Coeff2 | D46: =LOG10(($D$6-1)*$D$12+1) -> 0.1760912591 | G46: NA()
B47: Speed1 | D47: =$D$10*$G$33*$D$9/($D$24*$D$20*60/1000) -> 119.2949911 | G47: NA()
B48: Speeds | D48: =$D$10*$D$9/($D$24*$D$20*60/1000) -> 28.4035693 | G48: NA()
B49: Rapport final long | D49: =$D$9*$D$10 -> 4.11 | G49: NA()
B50: Nombre de lignes couple moteur | D50: =COUNTA(couples[Couple]) -> 17 | G50: NA()
G51: NA()
G52: NA()
E55: 1 | F55: 1 | G55: 1 | H55: 1 | I55: 1 | J55: 2 | K55: 2 | L55: 2 | M55: 2 | N55: 3 | O55: 3 | P55: 3 | Q55: 3 | R55: 4 | S55: 4 | T55: 4 | U55: 4 | V55: 5 | W55: 5 | X55: 5 | Y55: 5 | Z55: 6 | AA55: 6 | AB55: 6 | AC55: 6 | AD55: 7 | AE55: 7 | AF55: 7 | AG55: 7 | AH55: 8 | AI55: 8 | AJ55: 8 | AK55: 8 | AL55: 9 | AM55: 9 | AN55: 9 | AO55: 9 | AP55: 10 | AQ55: 10 | AR55: 10 | AS55: 10 | AT55: 11 | AU55: 11 | AV55: 11 | AW55: 11 | AX55: 12 | AY55: 12 | AZ55: 12 | BA55: 12 | BB55: 13 | BC55: 13 | BD55: 13 | BE55: 13 | BF55: 14 | BG55: 14 | BH55: 14 | BI55: 14 | BJ55: 15 | BK55: 15 | BL55: 15 | BM55: 15 | BN55: 16 | BO55: 16 | BP55: 16 | BQ55: 16 | BR55: 17 | BS55: 17 | BT55: 17 | BU55: 17 | BV55: 18 | BW55: 18 | BX55: 18 | BY55: 18 | BZ55: 19 | CA55: 19 | CB55: 19 | CC55: 19 | CD55: 20 | CE55: 20 | CF55: 20 | CG55: 20
E56: RPM1 | F56: Torque | G56: Torque1 | H56: Speed1 | I56: Traction1 | J56: RPM2 | K56: Torque2 | L56: Speed2 | M56: Traction2 | N56: RPM3 | O56: Torque3 | P56: Speed3 | Q56: Traction3 | R56: RPM4 | S56: Torque4 | T56: Speed4 | U56: Traction4 | V56: RPM5 | W56: Torque5 | X56: Speed5 | Y56: Traction5 | Z56: RPM6 | AA56: Torque6 | AB56: Speed6 | AC56: Traction6 | AD56: RPM7 | AE56: Torque7 | AF56: Speed7 | AG56: Traction7 | AH56: RPM8 | AI56: Torque8 | AJ56: Speed8 | AK56: Traction8 | AL56: RPM9 | AM56: Torque9 | AN56: Speed9 | AO56: Traction9 | AP56: RPM10 | AQ56: Torque10 | AR56: Speed10 | AS56: Traction10 | AT56: RPM11 | AU56: Torque11 | AV56: Speed11 | AW56: Traction11 | AX56: RPM12 | AY56: Torque12 | AZ56: Speed12 | BA56: Traction12 | BB56: RPM13 | BC56: Torque13 | BD56: Speed13 | BE56: Traction13 | BF56: RPM14 | BG56: Torque14 | BH56: Speed14 | BI56: Traction14 | BJ56: RPM15 | BK56: Torque15 | BL56: Speed15 | BM56: Traction15 | BN56: RPM16 | BO56: Torque16 | BP56: Speed16 | BQ56: Traction16 | BR56: RPM17 | BS56: Torque17 | BT56: Speed17 | BU56: Traction17 | BV56: RPM18 | BW56: Torque18 | BX56: Speed18 | BY56: Traction18 | BZ56: RPM19 | CA56: Torque19 | CB56: Speed19 | CC56: Traction19 | CD56: RPM20 | CE56: Torque20 | CF56: Speed20 | CG56: Traction20
E57: =IF(E$55<=$D$6,_xlfn.LET(_xlpm.tblRPM,couples[RPM],_xlpm.nbLines,COUNTA(_xlpm.tblRPM),IF(_xlfn.SEQUENCE(_xlpm.nbLines+1)<=_xlpm.nbLines,INDEX(_xlpm.tblRPM,_xlfn.SEQUENCE(_xlpm.nbLines)),INDEX(_xlpm.tblRPM,_xlpm.nbLines))),NA()) -> 750 | F57: =IF(G$55<=$D$6,_xlfn.LET(_xlpm.tblTorque,couples[Couple],_xlpm.nbLines,COUNTA(_xlpm.tblTorque),IF(_xlfn.SEQUENCE(_xlpm.nbLines+1,1)<=_xlpm.nbLines,INDEX(_xlpm.tblTorque,_xlfn.SEQUENCE(_xlpm.nbLines)),0)),NA()) -> 79 | G57: =IF(G$55<=$D$6,OFFSET($F57,0,0,$D$50+1)*$D$49*$G$33,NA()) -> 1363.698 | H57: =OFFSET($E57,0,0,$D$50+1)/($D$48*$G33) -> 6.286936218 | I57: =IF(I$55<=$D$6,OFFSET($F57,0,0,$D$50+1)*$D$49*$G$33/$D$21,NA()) -> 3552.879016 | J57: =IF(J$55<=$D$6,OFFSET($E$57,0,0,$D$50+1),NA()) -> 750 | K57: =IF(K$55<=$D$6,OFFSET($F57,0,0,$D$50+1)*$D$49*$G$34,NA()) -> 944.4190202 | L57: =IF(L$55<=$D$6,OFFSET($E57,0,0,$D$50+1)/($D$48*$G34),NA()) -> 9.078049217 | M57: =IF(M$55<=$D$6,OFFSET($F57,0,0,$D$50+1)*$D$49*$G$34/$D$21,NA()) -> 2460.520232 | N57: =IF(N$55<=$D$6,OFFSET($E$57,0,0,$D$50+1),NA()) -> 750 | O57: =IF(O$55<=$D$6,OFFSET($F57,0,0,$D$50+1)*$D$49*$G$35,NA()) -> 675.3109805 | P57: =IF(P$55<=$D$6,OFFSET($E57,0,0,$D$50+1)/($D$48*$G35),NA()) -> 12.69560631 | Q57: =IF(Q$55<=$D$6,OFFSET($F57,0,0,$D$50+1)*$D$49*$G$35/$D$21,NA()) -> 1759.40583 | R57: =IF(R$55<=$D$6,OFFSET($E$57,0,0,$D$50+1),NA()) -> 750 | S57: =IF(S$55<=$D$6,OFFSET($F57,0,0,$D$50+1)*$D$49*$G$36,NA()) -> 496.0309325 | T57: =IF(T$55<=$D$6,OFFSET($E57,0,0,$D$50+1)/($D$48*$G36),NA()) -> 17.28416876 | U57: =IF(U$55<=$D$6,OFFSET($F57,0,0,$D$50+1)*$D$49*$G$36/$D$21,NA()) -> 1292.322707 | V57: =IF(V$55<=$D$6,OFFSET($E$57,0,0,$D$50+1),NA()) -> 750 | W57: =IF(W$55<=$D$6,OFFSET($F57,0,0,$D$50+1)*$D$49*$G$37,NA()) -> 372.7766659 | X57: =IF(X$55<=$D$6,OFFSET($E57,0,0,$D$50+1)/($D$48*$G37),NA()) -> 22.99897803 | Y57: =IF(Y$55<=$D$6,OFFSET($F57,0,0,$D$50+1)*$D$49*$G$37/$D$21,NA()) -> 971.2050571 | Z57: =IF(Z$55<=$D$6,OFFSET($E$57,0,0,$D$50+1),NA()) -> 750 | AA57: =IF(AA$55<=$D$6,OFFSET($F57,0,0,$D$50+1)*$D$49*$G$38,NA()) -> 285.7272 | AB57: =IF(AB$55<=$D$6,OFFSET($E57,0,0,$D$50+1)/($D$48*$G38),NA()) -> 30.00583195 | AC57: =IF(AC$55<=$D$6,OFFSET($F57,0,0,$D$50+1)*$D$49*$G$38/$D$21,NA()) -> 744.4127463 | AD57: =IF(AD$55<=$D$6,OFFSET($E$57,0,0,$D$50+1),NA()) ->  | AE57: =IF(AE$55<=$D$6,OFFSET($F57,0,0,$D$50+1)*$D$49*$G$39,NA()) ->  | AF57: =IF(AF$55<=$D$6,OFFSET($E57,0,0,$D$50+1)/($D$48*$G39),NA()) ->  | AG57: =IF(AG$55<=$D$6,OFFSET($F57,0,0,$D$50+1)*$D$49*$G$39/$D$21,NA()) ->  | AH57: =IF(AH$55<=$D$6,OFFSET($E$57,0,0,$D$50+1),NA()) ->  | AI57: =IF(AI$55<=$D$6,OFFSET($F57,0,0,$D$50+1)*$D$49*$G$40,NA()) ->  | AJ57: =IF(AJ$55<=$D$6,OFFSET($E57,0,0,$D$50+1)/($D$48*$G40),NA()) ->  | AK57: =IF(AK$55<=$D$6,OFFSET($F57,0,0,$D$50+1)*$D$49*$G$40/$D$21,NA()) ->  | AL57: =IF(AL$55<=$D$6,OFFSET($E$57,0,0,$D$50+1),NA()) ->  | AM57: =IF(AM$55<=$D$6,OFFSET($F57,0,0,$D$50+1)*$D$49*$G$41,NA()) ->  | AN57: =IF(AN$55<=$D$6,OFFSET($E57,0,0,$D$50+1)/($D$48*$G41),NA()) ->  | AO57: =IF(AO$55<=$D$6,OFFSET($F57,0,0,$D$50+1)*$D$49*$G$41/$D$21,NA()) ->  | AP57: =IF(AP$55<=$D$6,OFFSET($E$57,0,0,$D$50+1),NA()) ->  | AQ57: =IF(AQ$55<=$D$6,OFFSET($F57,0,0,$D$50+1)*$D$49*$G$42,NA()) ->  | AR57: =IF(AR$55<=$D$6,OFFSET($E57,0,0,$D$50+1)/($D$48*$G42),NA()) ->  | AS57: =IF(AS$55<=$D$6,OFFSET($F57,0,0,$D$50+1)*$D$49*$G$42/$D$21,NA()) ->  | AT57: =IF(AT$55<=$D$6,OFFSET($E$57,0,0,$D$50+1),NA()) ->  | AU57: =IF(AU$55<=$D$6,OFFSET($F57,0,0,$D$50+1)*$D$49*$G$43,NA()) ->  | AV57: =IF(AV$55<=$D$6,OFFSET($E57,0,0,$D$50+1)/($D$48*$G43),NA()) ->  | AW57: =IF(AW$55<=$D$6,OFFSET($F57,0,0,$D$50+1)*$D$49*$G$43/$D$21,NA()) ->  | AX57: =IF(AX$55<=$D$6,OFFSET($E$57,0,0,$D$50+1),NA()) ->  | AY57: =IF(AY$55<=$D$6,OFFSET($F57,0,0,$D$50+1)*$D$49*$G$44,NA()) ->  | AZ57: =IF(AZ$55<=$D$6,OFFSET($E57,0,0,$D$50+1)/($D$48*$G44),NA()) ->  | BA57: =IF(BA$55<=$D$6,OFFSET($F57,0,0,$D$50+1)*$D$49*$G$44/$D$21,NA()) ->  | BB57: =IF(BB$55<=$D$6,OFFSET($E$57,0,0,$D$50+1),NA()) ->  | BC57: =IF(BC$55<=$D$6,OFFSET($F57,0,0,$D$50+1)*$D$49*$G$45,NA()) ->  | BD57: =IF(BD$55<=$D$6,OFFSET($E57,0,0,$D$50+1)/($D$48*$G45),NA()) ->  | BE57: =IF(BE$55<=$D$6,OFFSET($F57,0,0,$D$50+1)*$D$49*$G$45/$D$21,NA()) ->  | BF57: =IF(BF$55<=$D$6,OFFSET($E$57,0,0,$D$50+1),NA()) ->  | BG57: =IF(BG$55<=$D$6,OFFSET($F57,0,0,$D$50+1)*$D$49*$G$46,NA()) ->  | BH57: =IF(BH$55<=$D$6,OFFSET($E57,0,0,$D$50+1)/($D$48*$G46),NA()) ->  | BI57: =IF(BI$55<=$D$6,OFFSET($F57,0,0,$D$50+1)*$D$49*$G$46/$D$21,NA()) ->  | BJ57: =IF(BJ$55<=$D$6,OFFSET($E$57,0,0,$D$50+1),NA()) ->  | BK57: =IF(BK$55<=$D$6,OFFSET($F57,0,0,$D$50+1)*$D$49*$G$47,NA()) ->  | BL57: =IF(BL$55<=$D$6,OFFSET($E57,0,0,$D$50+1)/($D$48*$G47),NA()) ->  | BM57: =IF(BM$55<=$D$6,OFFSET($F57,0,0,$D$50+1)*$D$49*$G$47/$D$21,NA()) ->  | BN57: =IF(BN$55<=$D$6,OFFSET($E$57,0,0,$D$50+1),NA()) ->  | BO57: =IF(BO$55<=$D$6,OFFSET($F57,0,0,$D$50+1)*$D$49*$G$48,NA()) ->  | BP57: =IF(BP$55<=$D$6,OFFSET($E57,0,0,$D$50+1)/($D$48*$G48),NA()) ->  | BQ57: =IF(BQ$55<=$D$6,OFFSET($F57,0,0,$D$50+1)*$D$49*$G$48/$D$21,NA()) ->  | BR57: =IF(BR$55<=$D$6,OFFSET($E$57,0,0,$D$50+1),NA()) ->  | BS57: =IF(BS$55<=$D$6,OFFSET($F57,0,0,$D$50+1)*$D$49*$G$49,NA()) ->  | BT57: =IF(BT$55<=$D$6,OFFSET($E57,0,0,$D$50+1)/($D$48*$G49),NA()) ->  | BU57: =IF(BU$55<=$D$6,OFFSET($F57,0,0,$D$50+1)*$D$49*$G$49/$D$21,NA()) ->  | BV57: =IF(BV$55<=$D$6,OFFSET($E$57,0,0,$D$50+1),NA()) ->  | BW57: =IF(BW$55<=$D$6,OFFSET($F57,0,0,$D$50+1)*$D$49*$G$50,NA()) ->  | BX57: =IF(BX$55<=$D$6,OFFSET($E57,0,0,$D$50+1)/($D$48*$G50),NA()) ->  | BY57: =IF(BY$55<=$D$6,OFFSET($F57,0,0,$D$50+1)*$D$49*$G$50/$D$21,NA()) ->  | BZ57: =IF(BZ$55<=$D$6,OFFSET($E$57,0,0,$D$50+1),NA()) ->  | CA57: =IF(CA$55<=$D$6,OFFSET($F57,0,0,$D$50+1)*$D$49*$G$51,NA()) ->  | CB57: =IF(CB$55<=$D$6,OFFSET($E57,0,0,$D$50+1)/($D$48*$G51),NA()) ->  | CC57: =IF(CC$55<=$D$6,OFFSET($F57,0,0,$D$50+1)*$D$49*$G$51/$D$21,NA()) ->  | CD57: =IF(CD$55<=$D$6,OFFSET($E$57,0,0,$D$50+1),NA()) ->  | CE57: =IF(CE$55<=$D$6,OFFSET($F57,0,0,$D$50+1)*$D$49*$G$52,NA()) ->  | CF57: =IF(CF$55<=$D$6,OFFSET($E57,0,0,$D$50+1)/($D$48*$G52),NA()) ->  | CG57: =IF(CG$55<=$D$6,OFFSET($F57,0,0,$D$50+1)*$D$49*$G$52/$D$21,NA()) -> 
E58: 1000 | F58: 106 | G58: 1829.772 | H58: 8.382581624 | I58: 4767.154123 | J58: 1000 | K58: 1267.195141 | L58: 12.10406562 | M58: 3301.457527 | N58: 1000 | O58: 906.1134674 | P58: 16.92747508 | Q58: 2360.721747 | R58: 1000 | S58: 665.5604917 | T58: 23.04555835 | U58: 1734.00262 | V58: 1000 | W58: 500.1813491 | X58: 30.66530403 | Y58: 1303.135899 | Z58: 1000 | AA58: 383.3808 | AB58: 40.00777593 | AC58: 998.8322925
E59: 1250 | F59: 135 | G59: 2330.37 | H59: 10.47822703 | I59: 6071.375534 | J59: 1250 | K59: 1613.880604 | L59: 15.13008203 | M59: 4204.686473 | N59: 1250 | O59: 1154.012435 | P59: 21.15934386 | Q59: 3006.579584 | R59: 1250 | S59: 847.647796 | T59: 28.80694793 | U59: 2208.399563 | V59: 1250 | W59: 637.0234163 | X59: 38.33163004 | Y59: 1659.654212 | Z59: 1250 | AA59: 488.268 | AB59: 50.00971992 | AC59: 1272.097731
E60: 1500 | F60: 162 | G60: 2796.444 | H60: 12.57387244 | I60: 7285.650641 | J60: 1500 | K60: 1936.656725 | L60: 18.15609843 | M60: 5045.623767 | N60: 1500 | O60: 1384.814922 | P60: 25.39121263 | Q60: 3607.8955 | R60: 1500 | S60: 1017.177355 | T60: 34.56833752 | U60: 2650.079476 | V60: 1500 | W60: 764.4280996 | X60: 45.99795605 | Y60: 1991.585054 | Z60: 1500 | AA60: 585.9216 | AB60: 60.0116639 | AC60: 1526.517277
E61: 1750 | F61: 190 | G61: 3279.78 | H61: 14.66951784 | I61: 8544.8989 | J61: 1750 | K61: 2271.387517 | L61: 21.18211484 | M61: 5917.706888 | N61: 1750 | O61: 1624.165649 | P61: 29.6230814 | Q61: 4231.482377 | R61: 1750 | S61: 1192.985787 | T61: 40.3297271 | U61: 3108.117904 | V61: 1750 | W61: 896.5514749 | X61: 53.66428206 | Y61: 2335.809631 | Z61: 1750 | AA61: 687.192 | AB61: 70.01360788 | AC61: 1790.35977
E62: 2000 | F62: 220 | G62: 3797.64 | H62: 16.76516325 | I62: 9894.093463 | J62: 2000 | K62: 2630.027651 | L62: 24.20813124 | M62: 6852.081659 | N62: 2000 | O62: 1880.612857 | P62: 33.85495017 | Q62: 4899.611173 | R62: 2000 | S62: 1381.351964 | T62: 46.09111669 | U62: 3598.873363 | V62: 2000 | W62: 1038.112234 | X62: 61.33060807 | Y62: 2704.621678 | Z62: 2000 | AA62: 795.696 | AB62: 80.01555187 | AC62: 2073.048154
E63: 2250 | F63: 250 | G63: 4315.5 | H63: 18.86080865 | I63: 11243.28803 | J63: 2250 | K63: 2988.667786 | L63: 27.23414765 | M63: 7786.456431 | N63: 2250 | O63: 2137.060065 | P63: 38.08681894 | Q63: 5567.739969 | R63: 2250 | S63: 1569.718141 | T63: 51.85250628 | U63: 4089.628821 | V63: 2250 | W63: 1179.672993 | X63: 68.99693408 | Y63: 3073.433725 | Z63: 2250 | AA63: 904.2 | AB63: 90.01749585 | AC63: 2355.736539
E64: 2500 | F64: 270 | G64: 4660.74 | H64: 20.95645406 | I64: 12142.75107 | J64: 2500 | K64: 3227.761208 | L64: 30.26016406 | M64: 8409.372946 | N64: 2500 | O64: 2308.02487 | P64: 42.31868771 | Q64: 6013.159167 | R64: 2500 | S64: 1695.295592 | T64: 57.61389586 | U64: 4416.799127 | V64: 2500 | W64: 1274.046833 | X64: 76.66326009 | Y64: 3319.308423 | Z64: 2500 | AA64: 976.536 | AB64: 100.0194398 | AC64: 2544.195462
E65: 2750 | F65: 280 | G65: 4833.36 | H65: 23.05209947 | I65: 12592.48259 | J65: 2750 | K65: 3347.30792 | L65: 33.28618046 | M65: 8720.831203 | N65: 2750 | O65: 2393.507273 | P65: 46.55055648 | Q65: 6235.868766 | R65: 2750 | S65: 1758.084318 | T65: 63.37528545 | U65: 4580.38428 | V65: 2750 | W65: 1321.233752 | X65: 84.32958609 | Y65: 3442.245772 | Z65: 2750 | AA65: 1012.704 | AB65: 110.0213838 | AC65: 2638.424924
E66: 3000 | F66: 275 | G66: 4747.05 | H66: 25.14774487 | I66: 12367.61683 | J66: 3000 | K66: 3287.534564 | L66: 36.31219687 | M66: 8565.102074 | N66: 3000 | O66: 2350.766071 | P66: 50.78242525 | Q66: 6124.513966 | R66: 3000 | S66: 1726.689955 | T66: 69.13667504 | U66: 4498.591703 | V66: 3000 | W66: 1297.640293 | X66: 91.9959121 | Y66: 3380.777098 | Z66: 3000 | AA66: 994.62 | AB66: 120.0233278 | AC66: 2591.310193
E67: 3250 | F67: 260 | G67: 4488.12 | H67: 27.24339028 | I67: 11693.01955 | J67: 3250 | K67: 3108.214497 | L67: 39.33821327 | M67: 8097.914688 | N67: 3250 | O67: 2222.542467 | P67: 55.01429402 | Q67: 5790.449568 | R67: 3250 | S67: 1632.506866 | T67: 74.89806462 | U67: 4253.213974 | V67: 3250 | W67: 1226.859913 | X67: 99.66223811 | Y67: 3196.371074 | Z67: 3250 | AA67: 940.368 | AB67: 130.0252718 | AC67: 2449.966
E68: 3500 | F68: 245 | G68: 4229.19 | H68: 29.33903568 | I68: 11018.42227 | J68: 3500 | K68: 2928.89443 | L68: 42.36422968 | M68: 7630.727303 | N68: 3500 | O68: 2094.318863 | P68: 59.24616279 | Q68: 5456.38517 | R68: 3500 | S68: 1538.323778 | T68: 80.65945421 | U68: 4007.836245 | V68: 3500 | W68: 1156.079533 | X68: 107.3285641 | Y68: 3011.965051 | Z68: 3500 | AA68: 886.116 | AB68: 140.0272158 | AC68: 2308.621808
E69: 3750 | F69: 222 | G69: 3832.164 | H69: 31.43468109 | I69: 9984.039768 | J69: 3750 | K69: 2653.936994 | L69: 45.39024608 | M69: 6914.373311 | N69: 3750 | O69: 1897.709337 | P69: 63.47803157 | Q69: 4944.153093 | R69: 3750 | S69: 1393.909709 | T69: 86.42084379 | U69: 3631.590393 | V69: 3750 | W69: 1047.549618 | X69: 114.9948901 | Y69: 2729.209148 | Z69: 3750 | AA69: 802.9296 | AB69: 150.0291598 | AC69: 2091.894047
E70: 4000 | F70: 198 | G70: 3417.876 | H70: 33.5303265 | I70: 8904.684117 | J70: 4000 | K70: 2367.024886 | L70: 48.41626249 | M70: 6166.873493 | N70: 4000 | O70: 1692.551571 | P70: 67.70990034 | Q70: 4409.650056 | R70: 4000 | S70: 1243.216768 | T70: 92.18223338 | U70: 3238.986026 | V70: 4000 | W70: 934.3010106 | X70: 122.6612161 | Y70: 2434.15951 | Z70: 4000 | AA70: 716.1264 | AB70: 160.0311037 | AC70: 1865.743339
B71: Vitesse Maximum | C71: RPM | D71: Traction | E71: 4700 | F71: 140 | G71: 2416.68 | H71: 39.39813363 | I71: 6296.241295 | J71: 4700 | K71: 1673.65396 | L71: 56.88910842 | M71: 4360.415601 | N71: 4700 | O71: 1196.753636 | P71: 79.5591329 | Q71: 3117.934383 | R71: 4700 | S71: 879.0421588 | T71: 108.3141242 | U71: 2290.19214 | V71: 4700 | W71: 660.6168762 | X71: 144.126929 | Y71: 1721.122886 | Z71: 4700 | AA71: 506.352 | AB71: 188.0365469 | AC71: 1319.212462
B72: =$B$73 -> 188.3065015 | C72: 0 | E72: 4800 | F72: 130 | G72: 2244.06 | H72: 40.2363918 | I72: 5846.509774 | J72: 4800 | K72: 1554.107248 | L72: 58.09951499 | M72: 4048.957344 | N72: 4800 | O72: 1111.271234 | P72: 81.2518804 | Q72: 2895.224784 | R72: 4800 | S72: 816.2534332 | T72: 110.6186801 | U72: 2126.606987 | V72: 4800 | W72: 613.4299565 | X72: 147.1934594 | Y72: 1598.185537 | Z72: 4800 | AA72: 470.184 | AB72: 192.0373245 | AC72: 1224.983
B73: =INDEX(D90:D117,MATCH(TRUE,D90:D117<>"",0)) -> 188.3065015 | C73: =(1000*B73/60)*($D$10*OFFSET($G$33,$D$6-1,0)*$D$9)/($D$24*$D$20) -> 4706.747554 | D73: =INDEX(E90:E117,MATCH(TRUE,E90:E117<>"",0)) -> 1312.854278 | E73: 4900 | F73: 50 | G73: 863.1 | H73: 41.07464996 | I73: 2248.657605 | J73: 4900 | K73: 597.7335571 | L73: 59.30992155 | M73: 1557.291286 | N73: 4900 | O73: 427.4120129 | P73: 82.94462791 | Q73: 1113.547994 | R73: 4900 | S73: 313.9436282 | T73: 112.9232359 | U73: 817.9257642 | V73: 4900 | W73: 235.9345986 | X73: 150.2599898 | Y73: 614.686745 | Z73: 4900 | AA73: 180.84 | AB73: 196.0381021 | AC73: 471.1473078
E74: 4900 | F74: 0 | G74: 0 | H74: 41.07464996 | I74: 0 | J74: 4900 | K74: 0 | L74: 59.30992155 | M74: 0 | N74: 4900 | O74: 0 | P74: 82.94462791 | Q74: 0 | R74: 4900 | S74: 0 | T74: 112.9232359 | U74: 0 | V74: 4900 | W74: 0 | X74: 150.2599898 | Y74: 0 | Z74: 4900 | AA74: 0 | AB74: 196.0381021 | AC74: 0
A78: Vitesse | B78: Frottements
A80: 0 | B80: =(0.5*$D$30*$D$29*$D$28*(A80/3.6)^2)+$D$38 -> 156.96
A81: 5 | B81: 157.7748148
A82: 10 | B82: 160.2192593
A83: 15 | B83: 164.2933333
A84: 20 | B84: 169.997037
A85: 25 | B85: 177.3303704
A86: 30 | B86: 186.2933333
A87: 35 | B87: 196.8859259
A88: 40 | B88: 209.1081481 | D88: Intersection dernier rapport / frottements | J88: Intersection 1-2 | N88: Intersection 2-3 | R88: Intersection 3-4 | V88: Intersection 4-5 | Z88: Intersection 5-6 | AD88: Intersection 6-7 | AH88: Intersection 7-8 | AL88: Intersection 8-9 | AP88: Intersection 9-10 | AT88: Intersection 10-11 | AX88: Intersection 11-12 | BB88: Intersection 12-13 | BF88: Intersection 13-14 | BJ88: Intersection 14-15 | BN88: Intersection 15-16 | BR88: Intersection 16-17 | BV88: Intersection 17-18 | BZ88: Intersection 18-19 | CD88: Intersection 19-20
A89: 45 | B89: 222.96 | J89: =Intersectcomplex(H57,I57,H58,I58,LIGNE2,TRUE) ->  | K89: =Intersectcomplex(H57,I57,H58,I58,LIGNE2,FALSE) ->  | N89: =Intersectcomplex(L57,M57,L58,M58,LIGNE3,TRUE) ->  | O89: =Intersectcomplex(L57,M57,L58,M58,LIGNE3,FALSE) ->  | R89: =Intersectcomplex(P57,Q57,P58,Q58,LIGNE4,TRUE) ->  | S89: =Intersectcomplex(P57,Q57,P58,Q58,LIGNE4,FALSE) ->  | V89: =Intersectcomplex(T57,U57,T58,U58,LIGNE5,TRUE) ->  | W89: =Intersectcomplex(T57,U57,T58,U58,LIGNE5,FALSE) ->  | Z89: =Intersectcomplex(X57,Y57,X58,Y58,LIGNE6,TRUE) ->  | AA89: =Intersectcomplex(X57,Y57,X58,Y58,LIGNE6,FALSE) ->  | AD89: =Intersectcomplex(AB57,AC57,AB58,AC58,LIGNE7,TRUE) ->  | AE89: =Intersectcomplex(AB57,AC57,AB58,AC58,LIGNE7,FALSE) ->  | AH89: =Intersectcomplex(AF57,AG57,AF58,AG58,LIGNE8,TRUE) ->  | AI89: =Intersectcomplex(AF57,AG57,AF58,AG58,LIGNE8,FALSE) ->  | AL89: =Intersectcomplex(AJ57,AK57,AJ58,AK58,LIGNE9,TRUE) ->  | AM89: =Intersectcomplex(AJ57,AK57,AJ58,AK58,LIGNE9,FALSE) ->  | AP89: =Intersectcomplex(AN57,AO57,AN58,AO58,LIGNE10,TRUE) ->  | AQ89: =Intersectcomplex(AN57,AO57,AN58,AO58,LIGNE10,FALSE) ->  | AT89: =Intersectcomplex(AR57,AS57,AR58,AS58,LIGNE11,TRUE) ->  | AU89: =Intersectcomplex(AR57,AS57,AR58,AS58,LIGNE11,FALSE) ->  | AX89: =Intersectcomplex(AV57,AW57,AV58,AW58,LIGNE12,TRUE) ->  | AY89: =Intersectcomplex(AV57,AW57,AV58,AW58,LIGNE12,FALSE) ->  | BB89: =Intersectcomplex(AZ57,BA57,AZ58,BA58,LIGNE13,TRUE) ->  | BC89: =Intersectcomplex(AZ57,BA57,AZ58,BA58,LIGNE13,FALSE) ->  | BF89: =Intersectcomplex(BD57,BE57,BD58,BE58,LIGNE14,TRUE) ->  | BG89: =Intersectcomplex(BD57,BE57,BD58,BE58,LIGNE14,FALSE) ->  | BJ89: =Intersectcomplex(BH57,BI57,BH58,BI58,LIGNE15,TRUE) ->  | BK89: =Intersectcomplex(BH57,BI57,BH58,BI58,LIGNE15,FALSE) ->  | BN89: =Intersectcomplex(BL57,BM57,BL58,BM58,LIGNE16,TRUE) ->  | BO89: =Intersectcomplex(BL57,BM57,BL58,BM58,LIGNE16,FALSE) ->  | BR89: =Intersectcomplex(BP57,BQ57,BP58,BQ58,LIGNE17,TRUE) ->  | BS89: =Intersectcomplex(BP57,BQ57,BP58,BQ58,LIGNE17,FALSE) ->  | BV89: =Intersectcomplex(BT57,BU57,BT58,BU58,LIGNE18,TRUE) ->  | BW89: =Intersectcomplex(BT57,BU57,BT58,BU58,LIGNE18,FALSE) ->  | BZ89: =Intersectcomplex(BX57,BY57,BX58,BY58,LIGNE19,TRUE) ->  | CA89: =Intersectcomplex(BX57,BY57,BX58,BY58,LIGNE19,FALSE) ->  | CD89: =Intersectcomplex(CB57,CC57,CB58,CC58,LIGNE20,TRUE) ->  | CE89: =Intersectcomplex(CB57,CC57,CB58,CC58,LIGNE20,FALSE) -> 
A90: 50 | B90: 238.4414815 | D90: =Intersectcomplex(OFFSET(H57,0,($D$6-1)*4),OFFSET(I57,0,($D$6-1)*4),OFFSET(H58,0,($D$6-1)*4),OFFSET(I58,0,($D$6-1)*4),frottements,TRUE) ->  | E90: =Intersectcomplex(OFFSET(H57,0,($D$6-1)*4),OFFSET(I57,0,($D$6-1)*4),OFFSET(H58,0,($D$6-1)*4),OFFSET(I58,0,($D$6-1)*4),frottements,FALSE) -> 
A91: 55 | B91: 255.5525926
A92: 60 | B92: 274.2933333
A93: 65 | B93: 294.6637037
A94: 70 | B94: 316.6637037
A95: 75 | B95: 340.2933333
A96: 80 | B96: 365.5525926
A97: 85 | B97: 392.4414815
A98: 90 | B98: 420.96
A99: 95 | B99: 451.1081481
A100: 100 | B100: 482.8859259
A101: 105 | B101: 516.2933333 | N101: 48.32608923 | O101: 6189.148486 | R101: 66.7358618 | S101: 4532.675269 | V101: 89.84884895 | W101: 3397.99227 | Z101: 118.3763619 | AA101: 2599.06832
A102: 110 | B102: 551.3303704 | J102: 34.03002617 | K102: 8682.550365
A103: 115 | B103: 587.997037
A104: 120 | B104: 626.2933333 | D104: 188.3065015 | E104: 1312.854278
A105: 125 | B105: 666.2192593 | J105: 41.07464996 | K105: 0 | N105: 59.30992155 | O105: 0 | R105: 82.94462791 | S105: 0 | V105: 112.9232359 | W105: 0 | Z105: 150.2599898 | AA105: 0
A106: 130 | B106: 707.7748148
A107: 135 | B107: 750.96 | J107: 0 | K107: 0 | N107: 0 | O107: 0 | R107: 0 | S107: 0 | V107: 0 | W107: 0 | Z107: 0 | AA107: 0
A108: 140 | B108: 795.7748148 | J108: 0 | K108: 0 | N108: 0 | O108: 0 | R108: 0 | S108: 0 | V108: 0 | W108: 0 | Z108: 0 | AA108: 0
A109: 145 | B109: 842.2192593 | J109: 0 | K109: 0 | N109: 0 | O109: 0 | R109: 0 | S109: 0 | V109: 0 | W109: 0 | Z109: 0 | AA109: 0
A110: 150 | B110: 890.2933333 | J110: 0 | K110: 0 | N110: 0 | O110: 0 | R110: 0 | S110: 0 | V110: 0 | W110: 0 | Z110: 0 | AA110: 0
A111: 155 | B111: 939.997037 | J111: 0 | K111: 0 | N111: 0 | O111: 0 | R111: 0 | S111: 0 | V111: 0 | W111: 0 | Z111: 0 | AA111: 0
A112: 160 | B112: 991.3303704 | J112: 0 | K112: 0 | N112: 0 | O112: 0 | R112: 0 | S112: 0 | V112: 0 | W112: 0 | Z112: 0 | AA112: 0
A113: 165 | B113: 1044.293333 | J113: 0 | K113: 0 | N113: 0 | O113: 0 | R113: 0 | S113: 0 | V113: 0 | W113: 0 | Z113: 0 | AA113: 0
A114: 170 | B114: 1098.885926 | J114: 0 | K114: 0 | N114: 0 | O114: 0 | R114: 0 | S114: 0 | V114: 0 | W114: 0 | Z114: 0 | AA114: 0
A115: 175 | B115: 1155.108148 | J115: 0 | K115: 0 | N115: 0 | O115: 0 | R115: 0 | S115: 0 | V115: 0 | W115: 0 | Z115: 0 | AA115: 0
A116: 180 | B116: 1212.96 | J116: 0 | K116: 0 | N116: 0 | O116: 0 | R116: 0 | S116: 0 | V116: 0 | W116: 0 | Z116: 0 | AA116: 0
A117: 185 | B117: 1272.441481
A118: 190 | B118: 1333.552593 | Z118: Marques Intersections
A119: 195 | B119: 1396.293333 | J119: km/h | K119: RPM | L119: Traction | M119: Vitesse | N119: Changement | O119: km/h | P119: RPM | R119: Milieux | U119: Etiquettes | Z119: km/h | AA119: Traction
A120: 200 | B120: 1460.663704 | J120: 0 | K120: 0 | M120: 1 | N120: 0 | O120: =OFFSET(J120,0,0,$D$6*2) -> 0 | P120: =OFFSET(K120,0,0,$D$6*2) -> 0
A121: 205 | B121: 1526.663704 | G121: Vitesse en km/h intersection 1-2 | J121: =IF($D$6-1-M121+1-N121>=0,INDEX(J$89:J$116, MATCH(TRUE, J$89:J$116<>"", 0)),OFFSET($H$57,$D$50-1,($D$6-1)*4)) -> 34.03002617 | K121: =(1000*J121/60)*($D$10*$G$33*$D$9)/($D$24*$D$20) -> 4059.611668 | L121: =INDEX(K$89:K$116, MATCH(TRUE, K$89:K$116<>"", 0)) -> 8682.550365 | M121: 1 | N121: 1 | O121: 34.03002617 | P121: 4059.611668 | R121: =(O121-O120)/2+O120 -> 17.01501308 | S121: =(P121-P120)/2+P120 -> 2029.805834 | U121: 1st | Z121: =IF(M121<=$D$6-1,J121,NA()) -> 34.03002617 | AA121: =IF(M121<=$D$6-1,L121,NA()) -> 8682.550365
A122: 210 | B122: 1594.293333 | J122: =IF($D$6-1-M122+1-N122>=0,INDEX(J$89:J$116, MATCH(TRUE, J$89:J$116<>"", 0)),OFFSET($H$57,$D$50-1,($D$6-1)*4)) -> 34.03002617 | K122: =(1000*J122/60)*($D$10*$G$34*$D$9)/($D$24*$D$20) -> 2811.454203 | L122: =INDEX(K$89:K$116, MATCH(TRUE, K$89:K$116<>"", 0)) -> 8682.550365 | M122: 2 | N122: 0 | O122: 34.03002617 | P122: 2811.454203 | Z122: 34.03002617 | AA122: 8682.550365
A123: 215 | B123: 1663.552593 | G123: Vitesse en km/h intersection 2-3 | J123: =IF($D$6-1-M123+1-N123>=0,INDEX(N$89:N$116, MATCH(TRUE, N$89:N$116<>"", 0)),OFFSET($H$57,$D$50-1,($D$6-1)*4)) -> 48.32608923 | K123: =(1000*J123/60)*($D$10*$G$34*$D$9)/($D$24*$D$20) -> 3992.550168 | L123: =INDEX(O$89:O$116, MATCH(TRUE, O$89:O$116<>"", 0)) -> 6189.148486 | M123: 2 | N123: 1 | O123: 48.32608923 | P123: 3992.550168 | R123: =(O123-O122)/2+O122 -> 41.1780577 | S123: =(P123-P122)/2+P122 -> 3402.002185 | U123: 2nd | Z123: 48.32608923 | AA123: 6189.148486
A124: 220 | B124: 1734.441481 | J124: =IF($D$6-1-M124+1-N124>=0,INDEX(N$89:N$116, MATCH(TRUE, N$89:N$116<>"", 0)),OFFSET($H$57,$D$50-1,($D$6-1)*4)) -> 48.32608923 | K124: =(1000*J124/60)*($D$10*$G$35*$D$9)/($D$24*$D$20) -> 2854.890584 | L124: =INDEX(O$89:O$116, MATCH(TRUE, O$89:O$116<>"", 0)) -> 6189.148486 | M124: 3 | N124: 0 | O124: 48.32608923 | P124: 2854.890584 | Z124: 48.32608923 | AA124: 6189.148486
A125: 225 | B125: 1806.96 | G125: Vitesse en km/h intersection 3-4 | J125: =IF($D$6-1-M125+1-N125>=0,INDEX(R$89:R$116, MATCH(TRUE, R$89:R$116<>"", 0)),OFFSET($H$57,$D$50-1,($D$6-1)*4)) -> 66.7358618 | K125: =(1000*J125/60)*($D$10*$G$35*$D$9)/($D$24*$D$20) -> 3942.458132 | L125: =INDEX(S$89:S$116, MATCH(TRUE, S$89:S$116<>"", 0)) -> 4532.675269 | M125: 3 | N125: 1 | O125: 66.7358618 | P125: 3942.458132 | R125: =(O125-O124)/2+O124 -> 57.53097552 | S125: =(P125-P124)/2+P124 -> 3398.674358 | U125: 3rd | Z125: 66.7358618 | AA125: 4532.675269
A126: 230 | B126: 1881.108148 | J126: =IF($D$6-1-M126+1-N126>=0,INDEX(R$89:R$116, MATCH(TRUE, R$89:R$116<>"", 0)),OFFSET($H$57,$D$50-1,($D$6-1)*4)) -> 66.7358618 | K126: =(1000*J126/60)*($D$10*$G$36*$D$9)/($D$24*$D$20) -> 2895.823169 | L126: =INDEX(S$89:S$116, MATCH(TRUE, S$89:S$116<>"", 0)) -> 4532.675269 | M126: 4 | N126: 0 | O126: 66.7358618 | P126: 2895.823169 | Z126: 66.7358618 | AA126: 4532.675269
A127: 235 | B127: 1956.885926 | G127: Vitesse en km/h intersection 4-5 | J127: =IF($D$6-1-M127+1-N127>=0,INDEX(V$89:V$116, MATCH(TRUE,V$89:V$116<>"", 0)),OFFSET($H$57,$D$50-1,($D$6-1)*4)) -> 89.84884895 | K127: =(1000*J127/60)*($D$10*$G$36*$D$9)/($D$24*$D$20) -> 3898.749061 | L127: =INDEX(W$89:W$116, MATCH(TRUE, W$89:W$116<>"", 0)) -> 3397.99227 | M127: 4 | N127: 1 | O127: 89.84884895 | P127: 3898.749061 | R127: =(O127-O126)/2+O126 -> 78.29235537 | S127: =(P127-P126)/2+P126 -> 3397.286115 | U127: 4th | Z127: 89.84884895 | AA127: 3397.99227
A128: 240 | B128: 2034.293333 | J128: =IF($D$6-1-M128+1-N128>=0,INDEX(V$89:V$116, MATCH(TRUE,V$89:V$116<>"", 0)),OFFSET($H$57,$D$50-1,($D$6-1)*4)) -> 89.84884895 | K128: =(1000*J128/60)*($D$10*$G$37*$D$9)/($D$24*$D$20) -> 2929.98396 | L128: =INDEX(W$89:W$116, MATCH(TRUE, W$89:W$116<>"", 0)) -> 3397.99227 | M128: 5 | N128: 0 | O128: 89.84884895 | P128: 2929.98396 | Z128: 89.84884895 | AA128: 3397.99227
A129: 245 | B129: 2113.33037 | G129: Vitesse en km/h intersection 5-6 | J129: =IF($D$6-1-M129+1-N129>=0,INDEX(Z$89:Z$116, MATCH(TRUE, Z$89:Z$116<>"", 0)),OFFSET($H$57,$D$50-1,($D$6-1)*4)) -> 118.3763619 | K129: =(1000*J129/60)*($D$10*$G$37*$D$9)/($D$24*$D$20) -> 3860.270282 | L129: =INDEX(AA$89:AA$116, MATCH(TRUE, AA$89:AA$116<>"", 0)) -> 2599.06832 | M129: 5 | N129: 1 | O129: 118.3763619 | P129: 3860.270282 | R129: =(O129-O128)/2+O128 -> 104.1126054 | S129: =(P129-P128)/2+P128 -> 3395.127121 | U129: 5th | Z129: 118.3763619 | AA129: 2599.06832
A130: 250 | B130: 2193.997037 | J130: =IF($D$6-1-M130+1-N130>=0,INDEX(Z$89:Z$116, MATCH(TRUE, Z$89:Z$116<>"", 0)),OFFSET($H$57,$D$50-1,($D$6-1)*4)) -> 118.3763619 | K130: =(1000*J130/60)*($D$10*$G$38*$D$9)/($D$24*$D$20) -> 2958.833854 | L130: =INDEX(AA$89:AA$116, MATCH(TRUE, AA$89:AA$116<>"", 0)) -> 2599.06832 | M130: 6 | N130: 0 | O130: 118.3763619 | P130: 2958.833854
A131: 255 | B131: 2276.293333 | G131: Vitesse en km/h intersection 6-7 | J131: =IF($D$6-1-M131+1-N131>=0,INDEX(AD$89:AD$116, MATCH(TRUE, AD$89:AD$116<>"", 0)),OFFSET($H$57,$D$50-1,($D$6-1)*4)) -> 196.0381021 | K131: =(1000*J131/60)*($D$10*$G$38*$D$9)/($D$24*$D$20) -> 4900 | L131: =INDEX(AE$89:AE$116, MATCH(TRUE, AE$89:AE$116<>"", 0)) ->  | M131: 6 | N131: 1 | O131: 196.0381021 | P131: 4900 | R131: =(O131-O130)/2+O130 -> 157.207232 | S131: =(P131-P130)/2+P130 -> 3929.416927 | U131: 6th
A132: 260 | B132: 2360.219259 | J132: =IF($D$6-1-M132+1-N132>=0,INDEX(AD$89:AD$116, MATCH(TRUE, AD$89:AD$116<>"", 0)),OFFSET($H$57,$D$50-1,($D$6-1)*4)) -> 196.0381021 | K132: =(1000*J132/60)*($D$10*$G$39*$D$9)/($D$24*$D$20) ->  | L132: =INDEX(AE$89:AE$116, MATCH(TRUE, AE$89:AE$116<>"", 0)) ->  | M132: 7 | N132: 0
A133: 265 | B133: 2445.774815 | G133: Vitesse en km/h intersection 7-8 | J133: =IF($D$6-1-M133+1-N133>=0,INDEX(AH$89:AH$116, MATCH(TRUE, AH$89:AH$116<>"", 0)),OFFSET($H$57,$D$50-1,($D$6-1)*4)) -> 196.0381021 | K133: =(1000*J133/60)*($D$10*$G$39*$D$9)/($D$24*$D$20) ->  | L133: =INDEX(AI$89:AI$116, MATCH(TRUE, AI$89:AI$116<>"", 0)) ->  | M133: 7 | N133: 1 | R133: =(O133-O132)/2+O132 -> 0 | S133: 0 | U133: 7th
A134: 270 | B134: 2532.96 | J134: =IF($D$6-1-M134+1-N134>=0,INDEX(AH$89:AH$116, MATCH(TRUE, AH$89:AH$116<>"", 0)),OFFSET($H$57,$D$50-1,($D$6-1)*4)) -> 196.0381021 | K134: =(1000*J134/60)*($D$10*$G$40*$D$9)/($D$24*$D$20) ->  | L134: =INDEX(AI$89:AI$116, MATCH(TRUE, AI$89:AI$116<>"", 0)) ->  | M134: 8 | N134: 0
A135: 275 | B135: 2621.774815 | G135: Vitesse en km/h intersection 8-9 | J135: =IF($D$6-1-M135+1-N135>=0,INDEX(AL$89:AL$116, MATCH(TRUE, AL$89:AL$116<>"", 0)),OFFSET($H$57,$D$50-1,($D$6-1)*4)) -> 196.0381021 | K135: =(1000*J135/60)*($D$10*$G$40*$D$9)/($D$24*$D$20) ->  | L135: =INDEX(AM$89:AM$116, MATCH(TRUE, AM$89:AM$116<>"", 0)) ->  | M135: 8 | N135: 1 | R135: 0 | S135: 0 | U135: 8th
A136: 280 | B136: 2712.219259 | J136: =IF($D$6-1-M136+1-N136>=0,INDEX(AL$89:AL$116, MATCH(TRUE, AL$89:AL$116<>"", 0)),OFFSET($H$57,$D$50-1,($D$6-1)*4)) -> 196.0381021 | K136: =(1000*J136/60)*($D$10*$G$41*$D$9)/($D$24*$D$20) ->  | L136: =INDEX(AM$89:AM$116, MATCH(TRUE, AM$89:AM$116<>"", 0)) ->  | M136: 9 | N136: 0
A137: 285 | B137: 2804.293333 | G137: Vitesse en km/h intersection 9-10 | J137: =IF($D$6-1-M137+1-N137>=0,INDEX(AP$89:AP$116, MATCH(TRUE, AP$89:AP$116<>"", 0)),OFFSET($H$57,$D$50-1,($D$6-1)*4)) -> 196.0381021 | K137: =(1000*J137/60)*($D$10*$G$41*$D$9)/($D$24*$D$20) ->  | L137: =INDEX(AQ$89:AQ$116, MATCH(TRUE, AQ$89:AQ$116<>"", 0)) ->  | M137: 9 | N137: 1 | R137: 0 | S137: 0 | U137: 9th
A138: 290 | B138: 2897.997037 | J138: =IF($D$6-1-M138+1-N138>=0,INDEX(AP$89:AP$116, MATCH(TRUE, AP$89:AP$116<>"", 0)),OFFSET($H$57,$D$50-1,($D$6-1)*4)) -> 196.0381021 | K138: =(1000*J138/60)*($D$10*$G$42*$D$9)/($D$24*$D$20) ->  | L138: =INDEX(AQ$89:AQ$116, MATCH(TRUE, AQ$89:AQ$116<>"", 0)) ->  | M138: 10 | N138: 0
A139: 295 | B139: 2993.33037 | G139: Vitesse en km/h intersection 10-11 | J139: =IF($D$6-1-M139+1-N139>=0,INDEX(AT$89:AT$116, MATCH(TRUE, AT$89:AT$116<>"", 0)),OFFSET($H$57,$D$50-1,($D$6-1)*4)) -> 196.0381021 | K139: =(1000*J139/60)*($D$10*$G$42*$D$9)/($D$24*$D$20) ->  | L139: =INDEX(AU$89:AU$116, MATCH(TRUE, AU$89:AU$116<>"", 0)) ->  | M139: 10 | N139: 1 | R139: 0 | S139: 0 | U139: 10th
A140: 300 | B140: 3090.293333 | J140: =IF($D$6-1-M140+1-N140>=0,INDEX(AT$89:AT$116, MATCH(TRUE, AT$89:AT$116<>"", 0)),OFFSET($H$57,$D$50-1,($D$6-1)*4)) -> 196.0381021 | K140: =(1000*J140/60)*($D$10*$G$43*$D$9)/($D$24*$D$20) ->  | L140: =INDEX(AU$89:AU$116, MATCH(TRUE, AU$89:AU$116<>"", 0)) ->  | M140: 11 | N140: 0
A141: 305 | B141: 3188.885926 | G141: Vitesse en km/h intersection 11-12 | J141: =IF($D$6-1-M141+1-N141>=0,INDEX(AX$89:AX$116, MATCH(TRUE, AX$89:AX$116<>"", 0)),OFFSET($H$57,$D$50-1,($D$6-1)*4)) -> 196.0381021 | K141: =(1000*J141/60)*($D$10*$G$43*$D$9)/($D$24*$D$20) ->  | L141: =INDEX(AY$89:AY$116, MATCH(TRUE, AY$89:AY$116<>"", 0)) ->  | M141: 11 | N141: 1 | R141: 0 | S141: 0 | U141: 11th
A142: 310 | B142: 3289.108148 | J142: =IF($D$6-1-M142+1-N142>=0,INDEX(AX$89:AX$116, MATCH(TRUE, AX$89:AX$116<>"", 0)),OFFSET($H$57,$D$50-1,($D$6-1)*4)) -> 196.0381021 | K142: =(1000*J142/60)*($D$10*$G$44*$D$9)/($D$24*$D$20) ->  | L142: =INDEX(AY$89:AY$116, MATCH(TRUE, AY$89:AY$116<>"", 0)) ->  | M142: 12 | N142: 0
A143: 315 | B143: 3390.96 | G143: Vitesse en km/h intersection 12-13 | J143: =IF($D$6-1-M143+1-N143>=0,INDEX(BB$89:BB$116, MATCH(TRUE, BB$89:BB$116<>"", 0)),OFFSET($H$57,$D$50-1,($D$6-1)*4)) -> 196.0381021 | K143: =(1000*J143/60)*($D$10*$G$44*$D$9)/($D$24*$D$20) ->  | L143: =INDEX(BC$89:BC$116, MATCH(TRUE, BC$89:BC$116<>"", 0)) ->  | M143: 12 | N143: 1 | R143: 0 | S143: 0 | U143: 12th
A144: 320 | B144: =(0.5*$D$30*$D$29*$D$28*(A144/3.6)^2)+$D$38 -> 3494.441481 | J144: =IF($D$6-1-M144+1-N144>=0,INDEX(BB$89:BB$116, MATCH(TRUE, BB$89:BB$116<>"", 0)),OFFSET($H$57,$D$50-1,($D$6-1)*4)) -> 196.0381021 | K144: =(1000*J144/60)*($D$10*$G$45*$D$9)/($D$24*$D$20) ->  | L144: =INDEX(BC$89:BC$116, MATCH(TRUE, BC$89:BC$116<>"", 0)) ->  | M144: 13 | N144: 0
A145: 325 | B145: 3599.552593 | G145: Vitesse en km/h intersection 13-14 | J145: =IF($D$6-1-M145+1-N145>=0,INDEX(BF$89:BF$116, MATCH(TRUE, BF$89:BF$116<>"", 0)),OFFSET($H$57,$D$50-1,($D$6-1)*4)) -> 196.0381021 | K145: =(1000*J145/60)*($D$10*$G$45*$D$9)/($D$24*$D$20) ->  | L145: =INDEX(BG$89:BG$116, MATCH(TRUE, BG$89:BG$116<>"", 0)) ->  | M145: 13 | N145: 1 | R145: 0 | S145: 0 | U145: 13th
A146: 330 | B146: 3706.293333 | J146: =IF($D$6-1-M146+1-N146>=0,INDEX(BF$89:BF$116, MATCH(TRUE, BF$89:BF$116<>"", 0)),OFFSET($H$57,$D$50-1,($D$6-1)*4)) -> 196.0381021 | K146: =(1000*J146/60)*($D$10*$G$46*$D$9)/($D$24*$D$20) ->  | L146: =INDEX(BG$89:BG$116, MATCH(TRUE, BG$89:BG$116<>"", 0)) ->  | M146: 14 | N146: 0
A147: 335 | B147: 3814.663704 | G147: Vitesse en km/h intersection 14-15 | J147: =IF($D$6-1-M147+1-N147>=0,INDEX(BJ$89:BJ$116, MATCH(TRUE, BJ$89:BJ$116<>"", 0)),OFFSET($H$57,$D$50-1,($D$6-1)*4)) -> 196.0381021 | K147: =(1000*J147/60)*($D$10*$G$46*$D$9)/($D$24*$D$20) ->  | L147: =INDEX(BK$89:BK$116, MATCH(TRUE, BK$89:BK$116<>"", 0)) ->  | M147: 14 | N147: 1 | R147: 0 | S147: 0 | U147: 14th
A148: 340 | B148: 3924.663704 | J148: =IF($D$6-1-M148+1-N148>=0,INDEX(BJ$89:BJ$116, MATCH(TRUE, BJ$89:BJ$116<>"", 0)),OFFSET($H$57,$D$50-1,($D$6-1)*4)) -> 196.0381021 | K148: =(1000*J148/60)*($D$10*$G$47*$D$9)/($D$24*$D$20) ->  | L148: =INDEX(BK$89:BK$116, MATCH(TRUE, BK$89:BK$116<>"", 0)) ->  | M148: 15 | N148: 0
A149: 345 | B149: 4036.293333 | G149: Vitesse en km/h intersection 15-16 | J149: =IF($D$6-1-M149+1-N149>=0,INDEX(BN$89:BN$116, MATCH(TRUE, BN$89:BN$116<>"", 0)),OFFSET($H$57,$D$50-1,($D$6-1)*4)) -> 196.0381021 | K149: =(1000*J149/60)*($D$10*$G$47*$D$9)/($D$24*$D$20) ->  | L149: =INDEX(BO$89:BO$116, MATCH(TRUE, BO$89:BO$116<>"", 0)) ->  | M149: 15 | N149: 1 | R149: 0 | S149: 0 | U149: 15th
A150: 350 | B150: 4149.552593 | J150: =IF($D$6-1-M150+1-N150>=0,INDEX(BN$89:BN$116, MATCH(TRUE, BN$89:BN$116<>"", 0)),OFFSET($H$57,$D$50-1,($D$6-1)*4)) -> 196.0381021 | K150: =(1000*J150/60)*($D$10*$G$48*$D$9)/($D$24*$D$20) ->  | L150: =INDEX(BO$89:BO$116, MATCH(TRUE, BO$89:BO$116<>"", 0)) ->  | M150: 16 | N150: 0
A151: 351 | B151: 4172.4 | G151: Vitesse en km/h intersection 16-17 | J151: =IF($D$6-1-M151+1-N151>=0,INDEX(BR$89:BR$116, MATCH(TRUE, BR$89:BR$116<>"", 0)),OFFSET($H$57,$D$50-1,($D$6-1)*4)) -> 196.0381021 | K151: =(1000*J151/60)*($D$10*$G$48*$D$9)/($D$24*$D$20) ->  | L151: =INDEX(BS$89:BS$116, MATCH(TRUE, BS$89:BS$116<>"", 0)) ->  | M151: 16 | N151: 1 | R151: 0 | S151: 0 | U151: 16th
A152: 352 | B152: 4195.312593 | J152: =IF($D$6-1-M152+1-N152>=0,INDEX(BR$89:BR$116, MATCH(TRUE, BR$89:BR$116<>"", 0)),OFFSET($H$57,$D$50-1,($D$6-1)*4)) -> 196.0381021 | K152: =(1000*J152/60)*($D$10*$G$49*$D$9)/($D$24*$D$20) ->  | L152: =INDEX(BS$89:BS$116, MATCH(TRUE, BS$89:BS$116<>"", 0)) ->  | M152: 17 | N152: 0
A153: 353 | B153: 4218.29037 | G153: Vitesse en km/h intersection 17-18 | J153: =IF($D$6-1-M153+1-N153>=0,INDEX(BV$89:BV$116, MATCH(TRUE, BV$89:BV$116<>"", 0)),OFFSET($H$57,$D$50-1,($D$6-1)*4)) -> 196.0381021 | K153: =(1000*J153/60)*($D$10*$G$49*$D$9)/($D$24*$D$20) ->  | L153: =INDEX(BW$89:BW$116, MATCH(TRUE, BW$89:BW$116<>"", 0)) ->  | M153: 17 | N153: 1 | R153: 0 | S153: 0 | U153: 17th
A154: 354 | B154: 4241.333333 | J154: =IF($D$6-1-M154+1-N154>=0,INDEX(BV$89:BV$116, MATCH(TRUE, BV$89:BV$116<>"", 0)),OFFSET($H$57,$D$50-1,($D$6-1)*4)) -> 196.0381021 | K154: =(1000*J154/60)*($D$10*$G$50*$D$9)/($D$24*$D$20) ->  | L154: =INDEX(BW$89:BW$116, MATCH(TRUE, BW$89:BW$116<>"", 0)) ->  | M154: 18 | N154: 0
A155: 355 | B155: 4264.441481 | G155: Vitesse en km/h intersection 18-19 | J155: =IF($D$6-1-M155+1-N155>=0,INDEX(BZ$89:BZ$116, MATCH(TRUE, BZ$89:BZ$116<>"", 0)),OFFSET($H$57,$D$50-1,($D$6-1)*4)) -> 196.0381021 | K155: =(1000*J155/60)*($D$10*$G$50*$D$9)/($D$24*$D$20) ->  | L155: =INDEX(CA$89:CA$116, MATCH(TRUE, CA$89:CA$116<>"", 0)) ->  | M155: 18 | N155: 1 | R155: 0 | S155: 0 | U155: 18th
A156: 356 | B156: 4287.614815 | J156: =IF($D$6-1-M156+1-N156>=0,INDEX(BZ$89:BZ$116, MATCH(TRUE, BZ$89:BZ$116<>"", 0)),OFFSET($H$57,$D$50-1,($D$6-1)*4)) -> 196.0381021 | K156: =(1000*J156/60)*($D$10*$G$51*$D$9)/($D$24*$D$20) ->  | L156: =INDEX(CA$89:CA$116, MATCH(TRUE, CA$89:CA$116<>"", 0)) ->  | M156: 19 | N156: 0
A157: 357 | B157: 4310.853333 | G157: Vitesse en km/h intersection 19-20 | J157: =IF($D$6-1-M157+1-N157>=0,INDEX(CD$89:CD$116, MATCH(TRUE, CD$89:CD$116<>"", 0)),OFFSET($H$57,$D$50-1,($D$6-1)*4)) -> 196.0381021 | K157: =(1000*J157/60)*($D$10*$G$51*$D$9)/($D$24*$D$20) ->  | L157: =INDEX(CE$89:CE$116, MATCH(TRUE, CE$89:CE$116<>"", 0)) ->  | M157: 19 | N157: 1 | R157: 0 | S157: 0 | U157: 19th
A158: 358 | B158: 4334.157037 | J158: =IF($D$6-1-M158+1-N158>=0,INDEX(CD$89:CD$116, MATCH(TRUE, CD$89:CD$116<>"", 0)),OFFSET($H$57,$D$50-1,($D$6-1)*4)) -> 196.0381021 | K158: =(1000*J158/60)*($D$10*$G$52*$D$9)/($D$24*$D$20) ->  | L158: =INDEX(CE$89:CE$116, MATCH(TRUE, CE$89:CE$116<>"", 0)) ->  | M158: 20 | N158: 0
A159: 359 | B159: 4357.525926 | J159: =IF($D$6-1-M159+1-N159>=0,INDEX(J$89:J$116, MATCH(TRUE, J$89:J$116<>"", 0)),OFFSET($H$57,$D$50-1,($D$6-1)*4)) -> 196.0381021 | K159: =(1000*J159/60)*($D$10*$G$52*$D$9)/($D$24*$D$20) ->  | M159: 20 | N159: 1 | R159: =(O159-O158)/2+O158 -> 0 | S159: =(P159-P158)/2+P158 -> 0 | U159: 20th
A160: 360 | B160: 4380.96
A161: 361 | B161: 4404.459259
A162: 362 | B162: 4428.023704 | E162: =_xlfn.LET( _xlpm.Test_impair, MOD(_xlfn.SEQUENCE(1, 2*$D$6), 2) = 1, _xlpm.Id_label, _xlfn.SEQUENCE(1, 2*$D$6, 2) / 2, _xlpm.Labels_Speed, "Speed " & _xlpm.Id_label, _xlpm.Labels_Effective_Power, "Effective Power " & _xlpm.Id_label - 0.5, IF(_xlpm.Test_impair,_xlpm.Labels_Speed,_xlpm.Labels_Effective_Power) ) -> Speed 1 | F162: Effective Power 1 | G162: Speed 2 | H162: Effective Power 2 | I162: Speed 3 | J162: Effective Power 3 | K162: Speed 4 | L162: Effective Power 4 | M162: Speed 5 | N162: Effective Power 5 | O162: Speed 6 | P162: Effective Power 6
A163: 363 | B163: 4451.653333 | E163: =_xlfn.LET( _xlpm.Test_Rapports, MOD(_xlfn.SEQUENCE(1, 2*$D$6), 2) = 1, _xlpm.Id_Rapports, _xlfn.SEQUENCE(1, 2*$D$6, 2) / 2, _xlpm.Rapports, INDEX($G$33:INDIRECT("$G$" & (ROW($G$33) + $D$6)), _xlpm.Id_Rapports), _xlpm.Id_RPM, _xlfn.SEQUENCE($D$50), _xlpm.RPM, INDEX($E$57:INDIRECT("$E$" & (ROW($E$57) + $D$50)), _xlpm.Id_RPM), _xlpm.Vitesses, _xlpm.RPM / ($D$48 * _xlpm.Rapports), _xlpm.Torques, INDEX($F$57:INDIRECT("$F$" & (ROW($F$57) + $D$50)), _xlpm.Id_RPM), _xlpm.Tractions, _xlpm.Torques * $D$49 * _xlpm.Rapports / $D$21, _xlpm.Frictions, 0.5 * $D$30 * $D$29 * $D$28 * (_xlpm.Vitesses / 3.6)^2 + $D$38, _xlpm.Effective_Power,IF(_xlpm.Test_Rapports, _xlpm.Vitesses, _xlpm.Vitesses * (_xlpm.Tractions - _xlpm.Frictions) / 3.6), IF(_xlpm.Effective_Power > 0, _xlpm.Effective_Power, 0) ) -> 6.286936218 | F163: 5928.285325 | G163: 9.078049217 | H163: 5802.069343 | I163: 12.69560631 | J163: 5632.591265 | K163: 17.28416876 | L163: 5404.307855 | M163: 22.99897803 | N163: 5091.750822 | O163: 30.00583195 | P163: 4651.804187
A164: 364 | B164: 4475.348148 | E164: 8.382581624 | F164: 10729.48075 | G164: 12.10406562 | H164: 10556.50179 | I164: 16.92747508 | J164: 10318.34314 | K164: 23.04555835 | L164: 9984.697914 | M164: 30.66530403 | N164: 9502.216028 | O164: 40.00777593 | P164: 8776.193161
A165: 365 | B165: 4499.108148 | E165: 10.47822703 | F165: 17204.19249 | G165: 15.13008203 | H165: 16980.42968 | I165: 21.15934386 | J165: 16663.14374 | K165: 28.80694793 | L165: 16199.05039 | M165: 38.33163004 | N165: 15490.29578 | O165: 50.00971992 | P165: 14358.68752
A166: 366 | B166: 4522.933333 | E166: 12.57387244 | F166: 24880.68168 | G166: 18.15609843 | H166: 24601.10899 | I166: 25.39121263 | J166: 24191.6373 | K166: 34.56833752 | L166: 23565.73795 | M166: 45.99795605 | N166: 22560.2758 | O166: 60.0116639 | P166: 20873.6957
A167: 367 | B167: 4546.823704 | E167: 14.66951784 | F167: 34151.14749 | G167: 21.18211484 | H167: 33809.73362 | I167: 29.6230814 | J167: 33292.40608 | K167: 40.3297271 | L167: 32467.07129 | M167: 53.66428206 | N167: 31080.37978 | O167: 70.01360788 | P167: 28659.5641
A168: 368 | B168: 4570.779259 | E168: 16.76516325 | F168: 45303.06928 | G168: 24.20813124 | H168: 44892.77776 | I168: 33.85495017 | J168: 44249.31255 | K168: 46.09111669 | L168: 43180.64129 | M168: 61.33060807 | N168: 41314.11167 | O168: 80.01555187 | P168: 37949.91938
A169: 369 | B169: 4594.8 | E169: 18.86080865 | F169: 58021.78784 | G169: 27.23414765 | H169: 57534.57697 | I169: 38.08681894 | J169: 56744.08061 | K169: 51.85250628 | L169: 55381.90028 | M169: 68.99693408 | N169: 52922.83681 | O169: 90.01749585 | P169: 48376.2496
A170: 370 | B170: 4618.885926 | E170: 20.95645406 | F170: 69688.80937 | G170: 30.26016406 | H170: 69115.63223 | I170: 42.31868771 | J170: 68154.59953 | K170: 57.61389586 | L170: 66442.46596 | M170: 76.66326009 | N170: 63264.08596 | O170: 100.0194398 | P170: 57266.20821
A171: 371 | B171: 4643.037037 | E171: 23.05209947 | F171: 79518.23574 | G171: 33.28618046 | H171: 78849.04022 | I171: 46.55055648 | J171: 77691.35432 | K171: 63.37528545 | L171: 75566.55176 | M171: 84.32958609 | N171: 71527.98555 | O171: 110.0213838 | P171: 63780.04436
A172: 372 | B172: =(0.5*$D$30*$D$29*$D$28*(A172/3.6)^2)+$D$38 -> 4667.253333 | E172: 25.14774487 | F172: 85153.37253 | G172: 36.31219687 | H172: 84377.10128 | I172: 50.78242525 | J172: 82994.03364 | K172: 69.13667504 | L172: 80387.57475 | M172: 91.9959121 | N172: 75333.86571 | O172: 120.0233278 | P172: 65507.2109
A173: 373 | B173: 4691.534815 | E173: 27.24339028 | F173: 87117.31856 | G173: 39.33821327 | H173: 86221.90905 | I173: 55.01429402 | J173: 84582.11943 | K173: 74.89806462 | L173: 81418.74532 | M173: 99.66223811 | N173: 75180.84984 | O173: 130.0252718 | P173: 62916.95393
A174: 374 | B174: 4715.881481 | E174: 29.33903568 | F174: 88289.36716 | G174: 42.36422968 | H174: 87261.75163 | I174: 59.24616279 | J174: 85331.2881 | K174: 80.65945421 | L174: 81529.46829 | M174: 107.3285641 | N174: 73924.25582 | O174: 140.0272158 | P174: 58834.71404
A175: 375 | B175: 4740.293333 | E175: 31.43468109 | F175: 85527.42574 | G175: 45.39024608 | H175: 84353.5312 | I175: 63.47803157 | J175: 82095.83016 | K175: 86.42084379 | L175: 77567.76261 | M175: 114.9948901 | N175: 68398.01562 | O175: 150.0291598 | P175: 50064.5459
A176: 376 | B176: 4764.77037 | E176: 33.5303265 | F176: 81134.82895 | G176: 48.41626249 | H176: 79799.57723 | I176: 67.70990034 | J176: 77175.46338 | K176: 92.18223338 | L176: 71827.07446 | M176: 122.6612161 | N176: 60881.48845 | O176: 160.0311037 | P176: 38855.93146
A177: 377 | B177: 4789.312593 | E177: 39.39813363 | F177: 66634.17998 | G177: 56.88910842 | H177: 64758.35584 | I177: 79.5591329 | J177: 60877.64286 | K177: 108.3141242 | L177: 52678.49877 | M177: 144.126929 | N177: 35516.51534 | O177: 188.0365469 | P177: 514.590756
A178: 378 | B178: 4813.92 | E178: 40.2363918 | F178: 63001.06299 | G178: 58.09951499 | H178: 61036.43417 | I178: 81.2518804 | J178: 56946.1204 | K178: 110.6186801 | L178: 48267.47703 | M178: 147.1934594 | N178: 30055.15498 | O178: 192.0373245 | P178: 0
A179: 379 | B179: 4838.592593 | E179: 41.07464996 | F179: 23238.09465 | G179: 59.30992155 | H179: 21181.57314 | I179: 82.94462791 | J179: 16873.63549 | K179: 112.9232359 | L179: 7696.226558 | M179: 150.2599898 | N179: 0 | O179: 196.0381021 | P179: 0
A180: 380 | B180: 4863.33037
A181: 381 | B181: 4888.133333
A182: 382 | B182: 4913.001481
A183: 383 | B183: 4937.934815
A184: 384 | B184: 4962.933333
A185: 385 | B185: 4987.997037
A186: 386 | B186: 5013.125926
A187: 387 | B187: 5038.32
A188: 388 | B188: 5063.579259
A189: 389 | B189: 5088.903704
A190: 390 | B190: 5114.293333
A191: 391 | B191: 5139.748148
A192: 392 | B192: 5165.268148
A193: 393 | B193: 5190.853333
A194: 394 | B194: 5216.503704
A195: 395 | B195: 5242.219259
A196: 396 | B196: 5268
A197: 397 | B197: 5293.845926
A198: 398 | B198: 5319.757037
A199: 399 | B199: 5345.733333
A200: 400 | B200: 5371.774815
A201: 401 | B201: 5397.881481
A202: 402 | B202: 5424.053333
A203: 403 | B203: 5450.29037
A204: 404 | B204: 5476.592593
A205: 405 | B205: 5502.96
A206: 406 | B206: 5529.392593
A207: 407 | B207: 5555.89037
A208: 408 | B208: =(0.5*$D$30*$D$29*$D$28*(A208/3.6)^2)+$D$38 -> 5582.453333
A209: 409 | B209: 5609.081481
A210: 410 | B210: 5635.774815
... 90 more rows

Sheet Autres graphes

Sheet Documentation
B4: Progression Linéaire
B5: Calcul du coefficient de progression linéraire
B10: Calcul de chaque rapport en progression linéraire
B16: Progression Logarithmique
B17: Calcul du rapport i en fonction de i, n, k, Rn, R1

Sheet Manual

Sheet Calculs de Vitesses
B2: Vitesse mini rotation moteur tr/min | C2: 500
B3: Vitesse maxi rotation moteur tr/min | C3: 4000
B4: Couple moteur | C4: 380
B5: Nombre de roues | C5: 4
B6: Rapports de boite de Transfert
B7: Vitesses courtes | C7: 2.488
B8: Vitesses longues | C8: 1
E9: Rapports Longs
B10: Rapports de ponts ou réduction finale | C10: 3.727
E11: Rapport sélectionné | F11: Rapports Longs | G11: Vitesse km/h | H11: Vitesse maxi km/h | I11: Couple maxi disponible | J11: Couple par roue, répartition uniforme | K11: Vitesse de rotation des roues en tr/min
B12: Pneus
B13: diamètre (pouces) | C13: 16 | E13: AR | F13: 4.313 | G13: =$C$16*($C$2/$C$10)*$C$20*60/F13/1000 -> 4.500907179 | H13: =$C$16*($C$3/$C$10)*$C$20*60/F13/1000 -> 36.00725743 | I13: =$C$4*$C$8*$C$10*F13 -> 6108.32938 | J13: =I13/$C$5 -> 1527.082345 | K13: =$C$2/$C$8/$C$10/F13 -> 31.10506788
B14: largeur (mm) | C14: 275
B15: hauteur de flancs (% de largeur) | C15: 70 | E15: 1 | F15: 4.081 | G15: =$C$16*($C$2/$C$10)*$C$20*60/F15/1000 -> 4.756778403 | H15: =$C$16*($C$3/$C$10)*$C$20*60/F15/1000 -> 38.05422723 | I15: =$C$4*$C$8*$C$10*F15 -> 5779.75706 | J15: =I15/$C$5 -> 1444.939265 | K15: =$C$2/$C$8/$C$10/F15 -> 32.87335402
B16: Coefficient d'écrasement | C16: 0.97 | E16: 2 | F16: 2.294 | G16: =$C$16*($C$2/$C$10)*$C$20*60/F16/1000 -> 8.462254867 | H16: 67.69803893 | I16: =$C$4*$C$8*$C$10*F16 -> 3248.90044 | J16: 812.22511 | K16: =$C$2/$C$8/$C$10/F16 -> 58.48132422
E17: 3 | F17: 1.49 | G17: =$C$16*($C$2/$C$10)*$C$20*60/F17/1000 -> 13.02846488 | H17: 104.227719 | I17: =$C$4*$C$8*$C$10*F17 -> 2110.2274 | J17: 527.55685 | K17: =$C$2/$C$8/$C$10/F17 -> 90.03768978
B18: hauteur de flanc calculée (mm) | C18: =C14*C15/100 -> 192.5 | E18: 4 | F18: 1 | G18: =$C$16*($C$2/$C$10)*$C$20*60/F18/1000 -> 19.41241266 | H18: 155.2993013 | I18: =$C$4*$C$8*$C$10*F18 -> 1416.26 | J18: 354.065 | K18: =$C$2/$C$8/$C$10/F18 -> 134.1561578
B19: diamètre total calculé (mm) | C19: =C13*25.4+2*C18 -> 791.4 | E19: 5 | F19: 0.881 | G19: =$C$16*($C$2/$C$10)*$C$20*60/F19/1000 -> 22.03452062 | H19: 176.2761649 | I19: =$C$4*$C$8*$C$10*F19 -> 1247.72506 | J19: 311.931265 | K19: =$C$2/$C$8/$C$10/F19 -> 152.2771371
B20: circonférence calculée (m) | C20: =PI()*C19/1000 -> 2.486256426
E22: Les valeurs de rapports et de couple indiquées ici sont celles du Toyota HDJ80 avec les rapports de ponts version Europe (3.72:1)
B23: Les valeurs en vert sont modifiables
E25: Rapports Courts
E27: Rapport sélectionné | F27: Rapports Courts | G27: Vitesse km/h | H27: Vitesse maxi km/h | I27: Couple maxi disponible* | J27: Couple par roue, répartition uniforme | K27: Vitesse de rotation des roues en tr/min | L27: Vitesse de rotation des roues en tr/s
E29: AR | F29: =F13*$C$7 -> 10.730744 | G29: =$C$16*($C$2/$C$10)*$C$20*60/$F29/1000 -> 1.809046294 | H29: =$C$16*($C$3/$C$10)*$C$20*60/$F29/1000 -> 14.47237035 | I29: =$C$4*$C$8*$C$10*F29 -> 15197.5235 | J29: =I29/$C$5 -> 3799.380874 | K29: =$C$2/$C$8/$C$10/F29 -> 12.50203693 | L29: =K29/60 -> 0.2083672822
E31: 1 | F31: =F15*$C$7 -> 10.153528 | G31: =$C$16*($C$2/$C$10)*$C$20*60/$F31/1000 -> 1.911888426 | H31: =$C$16*($C$3/$C$10)*$C$20*60/$F31/1000 -> 15.29510741 | I31: =$C$4*$C$8*$C$10*F31 -> 14380.03557 | J31: =I31/$C$5 -> 3595.008891 | K31: =$C$2/$C$8/$C$10/F31 -> 13.21276287 | L31: =K31/60 -> 0.2202127145
E32: 2 | F32: =F16*$C$7 -> 5.707472 | G32: 3.40122784 | H32: 27.20982272 | I32: =$C$4*$C$8*$C$10*F32 -> 8083.264295 | J32: 2020.816074 | K32: =$C$2/$C$8/$C$10/F32 -> 23.5053554 | L32: 0.3917559233
E33: 3 | F33: =F17*$C$7 -> 3.70712 | G33: 5.236521252 | H33: 41.89217002 | I33: =$C$4*$C$8*$C$10*F33 -> 5250.245771 | J33: 1312.561443 | K33: =$C$2/$C$8/$C$10/F33 -> 36.18878206 | L33: 0.6031463677
E34: 4 | F34: =F18*$C$7 -> 2.488 | G34: 7.802416666 | H34: 62.41933332 | I34: =$C$4*$C$8*$C$10*F34 -> 3523.65488 | J34: 880.91372 | K34: =$C$2/$C$8/$C$10/F34 -> 53.92128528 | L34: 0.8986880879
E35: 5 | F35: =F19*$C$7 -> 2.191928 | G35: 8.856318576 | H35: 70.85054861 | I35: =$C$4*$C$8*$C$10*F35 -> 3104.339949 | J35: 776.0849873 | K35: =$C$2/$C$8/$C$10/F35 -> 61.20463709 | L35: 1.020077285

Sheet traductions
C2: langue
B3: English | C3: Français
C4: English | E4: Français | F4: English | L4: =HLOOKUP(traductions!$B$3,traductions!$E4:$F44,2,FALSE) -> Speed number (n)
D5: 1 | E5: Nombre de vitesses (n) | F5: Speed number (n)
D6: 2 | E6: Rapport de 1ère vitesse (R1) | F6: First speed ratio (R1)
D7: 3 | E7: Rapport de dernière vitesse (Rn) | F7: Last speed ratio (Rn)
A8: AZ | D8: 4 | E8: Rapport de pont ou réduction finale | F8: Differential gearing or final gearing
D9: 5 | E9: Rapport de transfert en vitesses longues | F9: Transfercase long gearing ratio
D10: 6 | E10: Rapport de transfert en vitesses courtes | F10: Transfercase short gearing ratio
D11: 7 | E11: Coefficient logarithmique (k) | F11: Logarithmic coefficient (k)
D12: 8 | E12: Coefficient de progression linéaire calculé (r) | F12: Calculated linear spacing coefficient (r)
D13: 9 | E13: Les valeurs en vert sont modifiables | F13: Green values can be modified
D14: 10 | E14: Pneus | F14: Tires
D15: 11 | E15: Diamètre (pouces) | F15: Diameter (inches)
D16: 12 | E16: Largeur (mm) | F16: Width (mm)
D17: 13 | E17: Hauteur de flancs (% de largeur) | F17: Sidewall height (percent of width)
D18: 14 | E18: Coefficient d'écrasement | F18: Crushing coefficient
D19: 15 | E19: Rayon effectif calculéen m | F19: Calculated effective radius (m)
D20: 16 | E20: Hauteur de flanc calculée (mm) | F20: Calculated flank height (mm)
D21: 17 | E21: Diamètre total calculé (mm) | F21: Calculated total diameter (mm)
D22: 18 | E22: Circonférence calculée (m) | F22: Calculated circumference (m)
D23: 19 | E23: Surface frontale en m² | F23: Frontal area in m²
D24: 20 | E24: Coefficient de traînée | F24: Drag coefficient
D25: 21 | E25: Densitée de l'air en kg/m3 | F25: Air density in kg/m3
D26: 22 | E26: Masse du véhicule en kg | F26: Vehicle mass in kg
D27: 23 | E27: Coefficient de roulement | F27: Rolling coefficient
D28: 24 | E28: Pesanteur en m/s² | F28: Gravity in m/s²
D29: 25 | E29: Résistance au roulement calculée en N | F29: Calculated rolling resistance in N
D30: 26 | E30: Progression Logarithmique (rapports longs) | F30: Logarithmic spacing (long ratios)
D31: 27 | E31: Progression Logarithmique (rapports courts) | F31: Logarithmic spacing (short ratios)
D32: 28 | E32: Progression Linéaire (rapports longs) | F32: Linear spacing (long ratios)
D33: 29 | E33: Progression Linéaire (rapports courts) | F33: Linear spacing (short ratios)
D34: 30
D35: 31
D36: 32
D37: 33
D38: 34
D39: 35
D40: 36
D41: 37
D42: 38
D43: 39
D44: 40
